fUSD/lending_fUSD_20240105
["ID","MTS","AMOUNT","RATE_DAILY","PERIOD"]
[310337997,1704478284724,-500.0,0.00030958,2]
[310337998,1704478284733,-2234.59,0.00030958,2]
[310337999,1704478284742,-500.0,0.00030958,2]
[310338000,1704478284751,-500.0,0.00030958,2]
[310338001,1704478284761,-500.0,0.00030958,2]
[310338002,1704478284770,-658.24,0.00030958,2]
[310338003,1704478284779,-500.0,0.00030958,2]
[310338004,1704478284788,-3329.36,0.00030958,2]
[310338005,1704478284797,-3384.57,0.00030958,2]
[310338006,1704478284806,-4166.42,0.00030958,2]
[310338007,1704478284815,-5701.04,0.00030958,2]
[310338008,1704478284825,-500.0,0.00030958,2]
[310338009,1704478284834,-500.0,0.00030958,2]
[310338010,1704478284844,-1099.53,0.00030958,2]
[310338011,1704478284854,-500.0,0.00030958,2]
[310338012,1704478284865,-1999.67,0.00030958,2]
[310338013,1704478284874,-540.4,0.00030958,2]
[310338014,1704478284883,-2540.02,0.00030958,2]
[310338015,1704478284893,-500.0,0.00030958,2]
[310338016,1704478284902,-500.0,0.00030958,2]
[310338017,1704478284911,-1336.43,0.00030958,2]
[310338018,1704478284920,-912.83,0.00030958,2]
[310338019,1704478284929,-500.0,0.00030958,2]
[310338020,1704478284939,-1496.37,0.00030958,2]
[310338021,1704478284950,-502.01130279,0.00030958,2]
[310338022,1704478284959,-3456.02,0.00030958,2]
[310338023,1704478284970,-709.31,0.00030958,2]
[310338024,1704478284981,-2028.82,0.00030958,2]
[310338025,1704478284990,-500.0,0.00030958,2]
[310338026,1704478284999,-500.0,0.00030958,2]
[310338027,1704478285009,-3033.76,0.00030958,2]
[310338028,1704478285018,-500.0,0.00030958,2]
[310338029,1704478285027,-500.0,0.00030958,2]
[310338030,1704478285035,-2660.01,0.00030958,2]
[310338031,1704478285045,-797.44,0.00030958,2]
[310338032,1704478285054,-500.0,0.00030958,2]
[310338033,1704478285063,-533.09,0.00030958,2]
[310338034,1704478285072,-500.0,0.00030958,2]
[310338035,1704478285081,-5160.19,0.00030958,2]
[310338036,1704478285090,-500.0,0.00030958,2]
[310338037,1704478285099,-1204.65,0.00030958,2]
[310338038,1704478285108,-641.02,0.00030958,2]
[310338039,1704478285117,-500.0,0.00030958,2]
[310338040,1704478285127,-500.0,0.00030958,2]
[310338041,1704478285136,-500.0,0.00030958,2]
[310338042,1704478285145,-738.09038412,0.00030958,2]
[310338043,1704478285158,-2005.53961588,0.00030958,2]
[310338044,1704478285167,-1248.34,0.00030958,2]
[310338045,1704478285177,-2488.0,0.00030958,2]
[310338046,1704478285186,-1702.34,0.00030958,2]
[310338047,1704478285196,-726.84,0.00030958,2]
[310338048,1704478285205,-2317.11,0.00030958,2]
[310338049,1704478285215,-3521.58,0.00030958,2]
[310338050,1704478285226,-500.0,0.00030958,2]
[310338051,1704478285236,-930.79,0.00030958,2]
[310338052,1704478285244,-615.37,0.00030958,2]
[310338053,1704478285253,-500.0,0.00030958,2]
[310338054,1704478285263,-716.43,0.00030958,2]
[310338055,1704478285272,-500.0,0.00030958,2]
[310338056,1704478285282,-1089.63,0.00030958,2]
[310338057,1704478285291,-493.95767119,0.00030958,2]
[310338058,1704478285301,-23051.48,0.00030958,2]
[310338059,1704478285310,-1651.5,0.00030958,2]
[310338060,1704478285319,-500.0,0.00030958,2]
[310338061,1704478285329,-1350.99,0.00030958,2]
[310338062,1704478285338,-500.0,0.00030958,2]
[310338063,1704478285347,-500.0,0.00030958,2]
[310338064,1704478285357,-2082.4,0.00030958,2]
[310338065,1704478285367,-500.0,0.00030958,2]
[310338066,1704478285376,-556.59,0.00030958,2]
[310338067,1704478285386,-500.0,0.00030958,2]
[310338068,1704478285395,-1838.79,0.00030958,2]
[310338069,1704478285403,-2129.91,0.00030958,2]
[310338070,1704478285413,-500.0,0.00030958,2]
[310338071,1704478285422,-1114.73,0.00030958,2]
[310338072,1704478285432,-4628.16,0.00030958,2]
[310338073,1704478285441,-500.0,0.00030958,2]
[310338074,1704478285450,-401.88908631,0.00030958,2]
[310338075,1704478285459,-527.83,0.00030958,2]
[310338076,1704478285469,-633.9,0.00030958,2]
[310338077,1704478285480,-1488.21,0.00030958,2]
[310338078,1704478285490,-500.0,0.00030958,2]
[310338079,1704478285499,-1099.69,0.00030958,2]
[310338080,1704478285508,-1126.7,0.00030958,2]
[310338081,1704478285518,-3045.53,0.00030958,2]
[310338082,1704478285527,-6507.43,0.00030958,2]
[310338083,1704478285536,-500.0,0.00030958,2]
[310338084,1704478285546,-3728.5,0.00030958,2]
[310338085,1704478285555,-50.30450461,0.00030958,2]
[310338086,1704478285572,-500.0,0.0003041,2]
[310338087,1704478285581,-1624.98549539,0.00030958,2]
[310338088,1704478285591,-590.63460525,0.00030958,2]
[310338089,1704478285601,-573.52,0.00030958,2]
[310338090,1704478285610,-627.80573898,0.00030958,2]
[310338091,1704478285619,-500.0,0.00030958,2]
[310338092,1704478285630,-500.0,0.00030958,2]
[310338093,1704478285640,-500.0,0.00030958,2]
[310338094,1704478285650,-1056.13,0.00030958,2]
[310338095,1704478285660,-500.0,0.00030958,2]
[310338096,1704478285669,-1386.34,0.00030958,2]
[310338097,1704478285679,-2360.95,0.00030958,2]
[310338098,1704478285689,-3613.86,0.00030958,2]
[310338099,1704478285699,-623.8,0.00030958,2]
[310338100,1704478285708,-500.0,0.00030958,2]
[310338101,1704478285719,-500.0,0.00030958,2]
[310338102,1704478285728,-500.0,0.00030958,2]
[310338103,1704478285738,-500.0,0.00030958,2]
[310338104,1704478285747,-500.0,0.00030958,2]
[310338105,1704478285758,-500.0,0.00030958,2]
[310338106,1704478285768,-2949.16,0.00030958,2]
[310338107,1704478285778,-500.0,0.00030958,2]
[310338108,1704478285787,-3573.88,0.00030958,2]
[310338109,1704478285796,-33429.29,0.00030958,2]
[310338110,1704478285805,-5044.13,0.00030958,2]
[310338111,1704478285815,-2048.29767991,0.00030958,2]
[310338112,1704478404452,6328.18,0.00021683,2]
[310338113,1704478407038,1200.35,0.00021683,2]
[310338118,1704478478296,23900.0,0.00021683,2]
[310338161,1704478589615,476.76,0.00021856,2]
[310338162,1704478595611,320.48,0.00021683,2]
[310338167,1704478609314,920.0,0.00021683,2]
[310338168,1704478611656,470.85,0.00021845,2]
[310338169,1704478612055,470.85,0.00021905,2]
[310338170,1704478612285,470.85,0.00021965,2]
[310338171,1704478612708,470.85,0.00022025,2]
[310338172,1704478613245,470.85,0.00022085,2]
[310338173,1704478613296,470.85,0.00022145,2]
[310338174,1704478613426,470.85,0.00022205,2]
[310338175,1704478613635,470.85,0.00022265,2]
[310338176,1704478614055,470.85,0.00022325,2]
[310338177,1704478614257,470.85,0.00022384,2]
[310338178,1704478614496,470.85,0.00022444,2]
[310338183,1704478628139,8806.93,0.00021683,2]
[310338187,1704478693378,150.0,0.00021683,2]
[310338188,1704478777132,500.11320425,0.000225,2]
[310338194,1704478931708,599.279793,0.0002239,2]
[310338195,1704478936576,3176.98592825,0.0003,120]
[310338222,1704479432227,-553.00582169,0.00022797,2]
[310338223,1704479432237,-768.58257635,0.00022798,2]
[310338224,1704479432247,-427.11,0.00022804,2]
[310338225,1704479432257,-1000.0,0.00022863,2]
[310338226,1704479432266,-1683.97796677,0.00022864,2]
[310338227,1704479432279,-550.39902138,0.00022864,2]
[310338228,1704479432291,-1926.7925768,0.00022864,2]
[310338229,1704479432303,-1881.09910861,0.00022864,2]
[310338230,1704479432314,-292.97642527,0.00022864,2]
[310338231,1704479432326,-628.5781616,0.00022864,2]
[310338232,1704479432340,-1133.12918751,0.00022864,2]
[310338233,1704479432352,-831.05755206,0.00022864,2]
[310338234,1704479432363,-461.90520863,0.00022864,2]
[310338235,1704479432377,-1601.32099312,0.00022864,2]
[310338236,1704479432401,-5118.76759431,0.00022864,2]
[310338237,1704479432423,-1210.24940779,0.00022864,2]
[310338238,1704479432439,-24250.25679615,0.00022864,2]
[310338239,1704479432449,-300.0,0.00022999,2]
[310338240,1704479432460,-223.4,0.00023,2]
[310338241,1704479432470,-931.61796289,0.00023512,2]
[310338242,1704479432479,-348.25,0.00024329,2]
[310338243,1704479432489,-499.99,0.00024329,2]
[310338244,1704479432500,-150.99,0.00024329,2]
[310338245,1704479432510,-1292.96,0.00024329,2]
[310338246,1704479432520,-920.0,0.00024393,2]
[310338247,1704479432529,-1651.64,0.00024393,2]
[310338248,1704479432539,-406.58,0.00025244,2]
[310338249,1704479432549,-250.0,0.00026681,2]
[310338250,1704479432559,-5855.07,0.00026801,2]
[310338251,1704479432568,-299.11,0.00026801,2]
[310338252,1704479432577,-261.15,0.00026801,2]
[310338253,1704479432587,-165.72,0.00026801,2]
[310338254,1704479432596,-200.0,0.00026801,2]
[310338255,1704479432607,-2705.0,0.00026801,2]
[310338256,1704479432617,-211.88,0.00026996,2]
[310338257,1704479432628,-350.0,0.00027,3]
[310338258,1704479432638,-646.47,0.00027015,2]
[310338259,1704479432649,-174.85,0.00027066,2]
[310338260,1704479432659,-211.88,0.0002707,2]
[310338261,1704479432670,-200.0,0.00027082,2]
[310338262,1704479432680,-200.0,0.00027083,2]
[310338263,1704479432691,-250.0,0.00027085,2]
[310338264,1704479432701,-301.53,0.00027099,2]
[310338265,1704479432713,-357.14,0.00027101,2]
[310338266,1704479432723,-920.0,0.00027103,2]
[310338267,1704479432733,-2000.0,0.0002711,2]
[310338268,1704479432743,-292.8,0.00027143,2]
[310338269,1704479432753,-211.88,0.00027144,2]
[310338270,1704479432764,-1764.75,0.00027151,2]
[310338272,1704479432774,-5510.79,0.00027182,2]
[310338273,1704479432787,-150.0,0.00027204,2]
[310338274,1704479432798,-174.85,0.00027209,2]
[310338275,1704479432809,-211.88,0.00027218,2]
[310338276,1704479432818,-264.0,0.00027276,2]
[310338277,1704479432828,-211.88,0.00027292,2]
[310338278,1704479432839,-174.85,0.00027351,2]
[310338279,1704479432849,-211.88,0.00027366,2]
[310338280,1704479432860,-250.0,0.00027397,2]
[310338281,1704479432871,-250.0,0.000274,2]
[310338282,1704479432882,-211.88,0.0002744,2]
[310338283,1704479432892,-174.85,0.00027494,2]
[310338284,1704479432903,-406.58,0.00027508,2]
[310338285,1704479432913,-211.88,0.00027514,2]
[310338286,1704479432924,-211.88,0.00027588,2]
[310338287,1704479432934,-174.85,0.00027636,2]
[310338288,1704479432946,-211.88,0.00027662,2]
[310338289,1704479432958,-211.88,0.00027736,2]
[310338290,1704479432968,-174.85,0.00027779,2]
[310338291,1704479432978,-299.11,0.00027779,2]
[310338292,1704479432988,-211.88,0.0002781,2]
[310338293,1704479432998,-211.88,0.00027884,2]
[310338294,1704479433008,-174.85,0.00027921,2]
[310338295,1704479433019,-10333.78,0.00027945,2]
[310338296,1704479433030,-588.72,0.00027945,2]
[310338297,1704479433040,-211.88,0.00027958,2]
[310338298,1704479433051,-211.88,0.00028032,2]
[310338299,1704479433062,-174.85,0.00028064,2]
[310338300,1704479433073,-211.88,0.00028106,2]
[310338301,1704479433084,-211.88,0.0002818,2]
[310338302,1704479433095,-174.85,0.00028206,2]
[310338303,1704479433106,-211.88,0.00028254,2]
[310338304,1704479433117,-211.88,0.00028328,2]
[310338305,1704479433131,-174.85,0.00028349,2]
[310338306,1704479433141,-211.88,0.00028402,2]
[310338307,1704479433152,-205.0,0.00028423,2]
[310338308,1704479433162,-174.85,0.00028491,2]
[310338309,1704479433173,-174.85,0.00028634,2]
[310338310,1704479433185,-299.11,0.00028758,2]
[310338311,1704479433196,-174.85,0.00028776,2]
[310338312,1704479433206,-193.49572145,0.000288,2]
[310338313,1704479433216,-875.31020248,0.000289,2]
[310338314,1704479433231,-3293.1753049,0.000289,2]
[310338315,1704479433265,-1657.63766372,0.000289,2]
[310338316,1704479433278,-587.23600317,0.000289,2]
[310338317,1704479433291,-303.88,0.000289,2]
[310338318,1704479433305,-35857.20082573,0.000289,2]
[310338319,1704479433316,-1876.9832,0.000289,2]
[310338320,1704479433328,-2869.8311,0.000289,2]
[310338321,1704479433338,-174.85,0.00028918,2]
[310338322,1704479433349,-727.91,0.00029,2]
[310338323,1704479433360,-400.0,0.00029,3]
[310338324,1704479433371,-174.85,0.00029061,2]
[310338325,1704479433382,-174.85,0.00029203,2]
[310338326,1704479433393,-155.1833018,0.00029221,2]
[310338327,1704479433405,-159.17,0.00029231,2]
[310338328,1704479433417,-193.49572145,0.00029309,2]
[310338329,1704479433428,-174.85,0.00029346,2]
[310338330,1704479433439,-174.85,0.00029488,2]
[310338331,1704479433451,-174.85,0.00029631,2]
[310338332,1704479433462,-2106.0347,0.00029645,2]
[310338333,1704479433473,-248.27649792,0.00029655,2]
[310338334,1704479433483,-299.11,0.00029736,2]
[310338335,1704479433494,-34969.79425571,0.00029745,2]
[310338336,1704479433504,-409.425,0.00029755,2]
[310338337,1704479433514,-2266.0,0.00029755,2]
[310338338,1704479433537,-397.52381548,0.00029755,2]
[310338339,1704479433554,-144.54618452,0.00029755,2]
[310338340,1704479433565,-1026.0,0.00029755,2]
[310338341,1704479433577,-317.0,0.00029755,2]
[310338342,1704479433587,-406.58,0.00029772,2]
[310338343,1704479433598,-174.85,0.00029773,2]
[310338344,1704479433609,-279.462718,0.000298,4]
[310338345,1704479433625,-352.24673966,0.000298,2]
[310338346,1704479433635,-920.0,0.00029814,2]
[310338347,1704479433645,-193.49572145,0.00029818,2]
[310338348,1704479433657,-279.09870552,0.00029832,2]
[310338349,1704479433668,-155.23105754,0.00029834,2]
[310338350,1704479433679,-346.9899,0.00029835,2]
[310338351,1704479433689,-137447.4312,0.00029835,2]
[310338352,1704479433700,-138862.88654655,0.000299,2]
[310338353,1704479433714,-731.14561195,0.000299,2]
[310338354,1704479433727,-309.36977282,0.000299,2]
[310338355,1704479433746,-14411.09532721,0.000299,2]
[310338356,1704479433766,-521.69660047,0.000299,2]
[310338364,1704479438278,-248.27649788,0.00029696,2]
[310338365,1704479438287,-34.91450212,0.000299,2]
[310338366,1704479438391,-3601.2,0.000299,2]
[310338367,1704479438403,-4583.86879762,0.000299,2]
[310338368,1704479438452,-86673.97782673,0.000299,2]
[310338369,1704479438465,-620.15941707,0.000299,2]
[310338370,1704479438476,-315.19030927,0.000299,2]
[310338371,1704479438534,-1073.525,0.000299,2]
[310338372,1704479438624,-315.03044659,0.000299,2]
[310338373,1704479438636,-2999.180821,0.000299,2]
[310338382,1704479440821,-1221.96850062,0.000299,2]
[310338383,1704479441602,-248.27649788,0.00029737,2]
[310338384,1704479441613,-173.79259723,0.000299,2]
[310338397,1704479446271,-250.0,0.00029194,2]
[310338398,1704479446281,-248.27649788,0.00029777,2]
[310338399,1704479446290,-372.50350212,0.00029899,2]
[310338400,1704479446329,-180.50231957,0.00029899,2]
[310338401,1704479446338,-105.32996185,0.00029899,2]
[310338402,1704479446483,-463.01734506,0.00029899,2]
[310338403,1704479446492,-18468.59001508,0.000299,2]
[310338404,1704479446504,-510.23572595,0.000299,2]
[310338405,1704479446519,-254.86173603,0.000299,2]
[310338406,1704479446561,-2538.70740479,0.000299,2]
[310338407,1704479446573,-566.84976293,0.000299,2]
[310338408,1704479653378,155.0,0.00021157,2]
[310338409,1704479653808,609.50131274,0.00020467,2]
[310338410,1704479669375,280.07238962,0.00021157,2]
[310338411,1704479671797,558.42453916,0.00020467,2]
[310338412,1704479679724,620.21196217,0.00022077,2]
[310338414,1704479701718,619.96222449,0.00022077,2]
[310338415,1704479702868,155.0,0.00022077,2]
[310338416,1704479709772,217.67123487,0.00022077,2]
[310338417,1704479712999,33702.54710403,0.00021967,2]
[310338418,1704479713200,155.0,0.00022077,2]
[310338419,1704479716642,608.3334288,0.00022077,2]
[310338420,1704479718903,155.61673811,0.00022077,2]
[310338421,1704479729226,307.11037033,0.00022077,2]
[310338422,1704479729627,366.73213241,0.00022077,2]
[310338423,1704479730897,608.3334288,0.00022077,2]
[310338425,1704479754651,608.3334288,0.00022077,2]
[310338426,1704479772892,546.22121928,0.00022077,2]
[310338427,1704479817877,675.591265,0.00022432,2]
[310338430,1704479968788,299.99,0.00022767,7]
[310338549,1704480051310,182.97,0.00024397,10]
[310338550,1704480051725,182.97,0.00024995,10]
[310338621,1704480205122,150.0,0.0002151,2]
[310338622,1704480206097,260.07780583,0.00022058,2]
[310338627,1704480248618,155.63505133,0.00022404,2]
[310338631,1704480269984,500.11320425,0.00022501,2]
[310338634,1704480284096,3319.99308958,0.00022501,2]
[310338635,1704480284146,375.86279312,0.00022501,2]
[310338637,1704480287134,3182.68227492,0.00022501,2]
[310338639,1704480289606,695.86495479,0.00022501,2]
[310338640,1704480291102,313.44611819,0.00022501,2]
[310338650,1704480291629,7761.79501718,0.00022501,2]
[310338655,1704480301511,697.38991506,0.00022501,2]
[310338656,1704480302613,150.0,0.00022501,2]
[310338661,1704480310345,155.0,0.00022501,2]
[310338670,1704480326362,5264.33667276,0.00022501,2]
[310338671,1704480332441,5678.57488426,0.00022501,2]
[310338685,1704480370654,586.0,0.00022501,2]
[310338702,1704480404218,553.00582169,0.00022501,2]
[310338740,1704480599390,2171.64389261,0.000223,2]
[310338741,1704480601654,150.0,0.00025,7]
[310338742,1704480603520,150.0,0.00022501,2]
[310338743,1704480603730,150.0,0.00022501,2]
[310338744,1704480603937,150.0,0.00022501,2]
[310338745,1704480604130,150.0,0.00022501,2]
[310338746,1704480604313,253.11754624,0.00022501,2]
[310338761,1704480631466,-347.18418991,0.00022662,2]
[310338762,1704480631476,-1195.59815525,0.00022663,2]
[310338763,1704480631550,-1046.52912823,0.00022663,2]
[310338764,1704480631565,-811.52320954,0.00022663,2]
[310338765,1704480631578,-1422.25302275,0.00022663,2]
[310338766,1704480631589,-764.35468494,0.00022666,2]
[310338767,1704480631601,-150.0,0.00022765,2]
[310338768,1704480631611,-2692.09199765,0.00022766,2]
[310338769,1704480631644,-285.8344283,0.00022766,2]
[310338770,1704480631659,-261.672,0.00022766,2]
[310338771,1704480631687,-328.56219678,0.00022766,2]
[310338772,1704480631702,-291.71049143,0.00022766,2]
[310338773,1704480631764,-1373.47,0.00022766,2]
[310338774,1704480631777,-617.20713134,0.00022766,2]
[310338775,1704480631825,-690.78500141,0.00022766,2]
[310338860,1704480637458,-27126.6266112,0.00022766,2]
[310338861,1704480637470,-8835.85104424,0.00022767,2]
[310338862,1704480637480,-280.03317501,0.00022767,2]
[310338863,1704480637490,-9537.8239,0.00022897,2]
[310338864,1704480637500,-747.10633158,0.00022997,2]
[310338865,1704480637510,-4352.66052786,0.00022997,2]
[310338866,1704480637519,-241.34326259,0.00022997,2]
[310338867,1704480637528,-177.00592823,0.00022997,2]
[310338868,1704480637538,-155.0,0.00022997,2]
[310338869,1704480637547,-664.07872208,0.00022997,2]
[310338870,1704480637557,-155.63140025,0.00022997,2]
[310338871,1704480637566,-160.03974035,0.00022997,2]
[310338872,1704480637576,-369.43574031,0.00022997,2]
[310338873,1704480637586,-160.46157824,0.00022997,2]
[310338874,1704480637595,-269.52535138,0.00022997,2]
[310338875,1704480637604,-155.0,0.00022997,2]
[310338876,1704480637613,-220.37171058,0.00022997,2]
[310338877,1704480637623,-262.27452985,0.00022997,2]
[310338878,1704480637633,-214.47459225,0.00022997,2]
[310338879,1704480637642,-155.0,0.00022997,2]
[310338880,1704480637651,-527.54543763,0.00022997,2]
[310338881,1704480637660,-217.28450417,0.00022997,2]
[310338882,1704480637669,-3023.42825364,0.00022997,2]
[310338883,1704480637679,-234.89015367,0.00022997,2]
[310338884,1704480637688,-10525.07510932,0.00022997,2]
[310338885,1704480637698,-179.72804418,0.00022998,2]
[310338886,1704480637707,-2263.96943386,0.00022998,2]
[310338887,1704480637716,-262.72378197,0.00022998,2]
[310338888,1704480637726,-202.33,0.00022998,2]
[310338889,1704480637735,-499.99,0.00022998,2]
[310338890,1704480637745,-685.49,0.00022998,2]
[310338891,1704480637754,-221.33,0.00023,2]
[310338892,1704480637763,-155.63505126,0.00023017,2]
[310338893,1704480637773,-311.39,0.00023017,2]
[310338894,1704480637782,-893.47356778,0.00023024,3]
[310338895,1704480637792,-361.86,0.00023024,2]
[310338896,1704480637801,-500.0,0.00023521,2]
[310338897,1704480637810,-185.34,0.00023521,2]
[310338898,1704480637819,-23870.0,0.00023521,2]
[310338899,1704480637829,-250.0,0.00023521,2]
[310338900,1704480637839,-788.8,0.00023521,2]
[310338902,1704480637848,-150.0,0.00023521,2]
[310338903,1704480637857,-155.63505126,0.00023631,2]
[310338904,1704480637866,-155.63505126,0.00024244,2]
[310338905,1704480637876,-250.0,0.00024658,2]
[310338906,1704480637886,-553.00582169,0.00024857,2]
[310338907,1704480637895,-155.63505126,0.00024858,2]
[310338908,1704480637904,-210.0,0.00025042,2]
[310338910,1704480637914,-211.2,0.00025092,2]
[310338912,1704480637923,-712.74,0.00025098,2]
[310338913,1704480637933,-182.97,0.00025148,10]
[310338914,1704480637942,-250.11,0.00025178,2]
[310338915,1704480637951,-2000.0,0.00025187,2]
[310338916,1704480637961,-361.86,0.00025288,2]
[310338918,1704480637970,-157.98,0.00025292,2]
[310338920,1704480637980,-7427.565,0.00025292,2]
[310338922,1704480637989,-253.8,0.00025312,2]
[310338924,1704480637999,-155.63505126,0.00025471,2]
[310338926,1704480638008,-715.07,0.00025655,2]
[310338928,1704480638018,-150.0,0.00026079,2]
[310338930,1704480638027,-155.63505126,0.00026084,2]
[310338932,1704480638035,-250.11,0.00026157,2]
[310338935,1704480638043,-730.47,0.00026346,2]
[310338938,1704480638052,-788.8,0.00026461,2]
[310338940,1704480638062,-155.63505126,0.00026698,2]
[310338943,1704480638071,-3043.59605027,0.00027104,2]
[310338946,1704480638080,-250.11,0.00027135,2]
[310338949,1704480638089,-714.1,0.00027235,2]
[310338951,1704480638099,-155.63505126,0.00027311,2]
[310338953,1704480638108,-250.0,0.00027397,2]
[310338955,1704480638118,-250.0,0.000274,2]
[310338957,1704480638127,-361.86,0.00027552,2]
[310338960,1704480638137,-155.63505126,0.00027925,2]
[310338962,1704480638146,-2109.58943164,0.00027931,6]
[310338964,1704480638155,-205.0,0.00027932,2]
[310338966,1704480638165,-9176.12,0.00027945,2]
[310338968,1704480638174,-685.29635833,0.00028,2]
[310338970,1704480638183,-150.0,0.00028,2]
[310338971,1704480638192,-250.11,0.00028114,2]
[310338973,1704480638201,-437.19716095,0.00028136,4]
[310338976,1704480638210,-2434.24593458,0.00028136,2]
[310338977,1704480638220,-211.2,0.00028229,2]
[310338980,1704480638230,-191.71356893,0.00028231,2]
[310338982,1704480638239,-172.8517957,0.00028231,2]
[310338984,1704480638249,-352.24673964,0.00028231,2]
[310338986,1704480638258,-1136.44795679,0.00028233,2]
[310338988,1704480638267,-508.65602525,0.00028233,2]
[310338989,1704480638276,-236.68124518,0.00028233,2]
[310338991,1704480638286,-6771.45310589,0.00028233,2]
[310338992,1704480638296,-156.93894057,0.00028233,2]
[310338994,1704480638305,-695.578547,0.00028233,2]
[310338996,1704480638314,-292.07537104,0.00028233,2]
[310338998,1704480638324,-3060.60183847,0.00028233,2]
[310339000,1704480638333,-651.66959443,0.00028233,2]
[310339002,1704480638342,-299.95910379,0.00028233,2]
[310339004,1704480638352,-150.0,0.00028234,2]
[310339006,1704480638361,-174.74,0.00028234,2]
[310339008,1704480638371,-174.74,0.00028234,2]
[310339010,1704480638381,-174.74,0.00028234,2]
[310339012,1704480638390,-174.74,0.00028234,2]
[310339014,1704480638398,-174.74,0.00028234,2]
[310339016,1704480638408,-174.74,0.00028234,2]
[310339018,1704480638417,-174.74,0.00028234,2]
[310339020,1704480638425,-174.74,0.00028234,2]
[310339022,1704480638435,-1054263.9214738,0.00028235,2]
[310339023,1704480638444,-733.87,0.00028331,2]
[310339025,1704480638455,-175.06,0.00028395,2]
[310339027,1704480638464,-1853.7387,0.00028422,2]
[310339029,1704480638475,-2806.0813,0.00028423,2]
[310339031,1704480638485,-2434.24593452,0.00028508,2]
[310339034,1704480638494,-1000.0,0.00028523,2]
[310339036,1704480638504,-100000.0,0.00028523,2]
[310339037,1704480638515,-500.0,0.00028523,2]
[310339039,1704480638524,-155.63505126,0.00028538,2]
[310339041,1704480638533,-207.2278993,0.00028622,2]
[310339043,1704480638543,-1075.78130471,0.00028622,2]
[310339045,1704480638552,-162387.9437,0.00028623,2]
[310339047,1704480638561,-245000.0,0.00028624,2]
[310339049,1704480638571,-440.6890803,0.00028638,2]
[310339051,1704480638580,-437.19716092,0.00028721,4]
[310339053,1704480638590,-18956.58157169,0.00028722,2]
[310339055,1704480638599,-416.76204987,0.00028722,2]
[310339057,1704480638609,-16713.83662006,0.00028722,2]
[310339059,1704480638618,-309.16657707,0.00028722,2]
[310339061,1704480638629,-175.05260069,0.00028722,2]
[310339063,1704480638639,-931.13114601,0.00028722,2]
[310339065,1704480638648,-252.12148909,0.00028723,2]
[310339067,1704480638656,-277.96277619,0.00028723,2]
[310339069,1704480638666,-155.0,0.00028723,2]
[310339071,1704480638675,-3613.76151731,0.00028723,2]
[310339073,1704480638685,-6418.11723431,0.00028723,2]
[310339075,1704480638694,-2434.24593452,0.0002888,2]
[310339077,1704480638704,-479.76930913,0.00029,2]
[310339080,1704480638714,-200.0,0.00029,5]
[310339081,1704480638725,-195.99458152,0.00029,2]
[310339084,1704480638735,-160.29,0.00029021,2]
[310339086,1704480638746,-850.87,0.00029041,2]
[310339088,1704480638756,-938.33,0.00029068,2]
[310339089,1704480638766,-250.11,0.00029092,2]
[310339091,1704480638776,-2434.24593452,0.00029252,2]
[310339093,1704480638785,-437.19716092,0.00029305,4]
[310339095,1704480638795,-150.0,0.00029342,2]
[310339097,1704480638804,-150.0,0.00029342,2]
[310339099,1704480638813,-313.61,0.00029342,2]
[310339101,1704480638822,-417.1,0.00029342,2]